Cogmind - Beta 11.1 @@@ ROGUE MODE // 2022.04.29 @ 11:36:55 Player: Rainynight Result: Self-destructed Performance ------------- Evolutions (2) 1000 Regions Visited (4) 800 Robots Destroyed (13) 65 Value Destroyed (286) 286 Prototype IDs (0) 0 Alien Tech Used (0) 0 Bonus (7) 7 TOTAL SCORE: 2158 Bonus ------- Follower Combat Kills 7 Cogmind --------- Core Integrity 550/550 Matter 190/300 Energy 124/125 System Corruption 1% Temperature Cool (2) Movement Flying (120) Ox1 Location -8/Materials Parts ------- > --- POWER (1) -------- Light Ion Engine > --- PROPULSION (2) --- Flight Unit > --- UTILITY (6) ------ Visual Processing Unit Hacking Suite System Shield System Shield System Shield > --- WEAPON (2) ------- Katana Katana > --- INVENTORY (5) ---- Flight Unit Flight Unit Terrain Scanner Katana Katana Peak State ------------ > --- POWER ------------ Light Ion Engine > --- PROPULSION ------- Flight Unit Flight Unit > --- UTILITY ---------- Visual Processing Unit Hacking Suite System Shield System Shield System Shield System Shield > --- WEAPON ----------- Katana Katana > --- INVENTORY -------- Flight Unit Flight Unit Terrain Scanner Katana Katana [Rating: 26] Favorites ----------- Power Light Ion Engine Engine Light Ion Engine Propulsion Flight Unit Flight Unit Flight Unit Utility Visual Processing Unit Device Heat Sink Processor Visual Processing Unit Hackware System Shield Weapon Small Laser Energy Gun Small Laser Ballistic Gun Light Assault Rifle Slashing Weapon Katana Build | -11 -10 -10 -9 -8 ------- Run | Scr Mat Min Mat Mat Slots Evolved 4 | . . . 2 2 Power . | . . . . . Propulsion . | . . . . . Utility 4 | . . . 2 2 Weapon . | . . . . . Parts Attached 22 | 3 . . 14 5 Power 1 | . . . 1 . Engine 1 | . . . 1 . Core . | . . . . . Reactor . | . . . . . Propulsion 5 | . . . 5 . Treads . | . . . . . Leg . | . . . . . Wheel . | . . . . . Hover . | . . . . . Flight 5 | . . . 5 . Utility 8 | . . . 5 3 Device 2 | . . . 1 1 Storage . | . . . . . Processor 1 | . . . 1 . Hackware 5 | . . . 3 2 Protection . | . . . . . Artifact . | . . . . . Weapon 8 | 3 . . 3 2 Energy Gun 5 | 3 . . 2 . Energy Cannon . | . . . . . Ballistic Gun 1 | . . . 1 . Ballistic Cannon . | . . . . . Launcher . | . . . . . Special Weapon . | . . . . . Impact Weapon . | . . . . . Slashing Weapon 2 | . . . . 2 Piercing Weapon . | . . . . . Special Melee Weapon . | . . . . . Unidentified Prototypes . | . . . . . Parts Lost 4 | . . . 2 2 Power . | . . . . . Propulsion 1 | . . . . 1 Utility 1 | . . . . 1 Weapon 2 | . . . 2 . Highest Loss Streak 2 | . . . 2 2 To Critical Strikes . | . . . . . Average Slot Usage (%) 45 | . 28 28 40 94 Engine 1 | . . . . 9 Flight 8 | . . . 9 18 Processor 8 | . . . 10 9 Hackware 6 | . . . 1 38 Energy Gun 17 | . 28 28 16 7 Ballistic Gun 1 | . . . 2 . Slashing Weapon 1 | . . . . 10 Naked Turns . | . . . . . Heaviest Build 8 | 3 2 2 7 8 Greatest Support 8 | 3 3 3 8 8 Greatest Overweight (x) . | . . . . . Average Overweight (x) . | . . . . . Largest Inventory Capacity 5 | 5 5 5 5 5 Average Capacity 5 | 5 5 5 5 5 Most Carried 5 | 2 3 3 5 5 Average Carried 3 | 1 2 2 3 4 Final Capacity 5 | 5 5 5 5 5 Final Carried 5 | 2 3 3 5 5 Class Distribution -------------------- 85% | Mutant 14% | Hacker-Mutant Dominant Class ---------------- Mutant | -10/Materials Mutant | -10/Mines Mutant | -9/Materials Hacker-Mutant | -8/Materials Resources | -11 -10 -10 -9 -8 ----------- Run | Scr Mat Min Mat Mat Matter Collected 324 | 209 . 21 94 . Remotely . | . . . . . Salvage Created 333 | . . 31 289 13 Parts 22 | . . 1 20 1 Haulers Intercepted . | . . . . . Recyclers Shooed 2 | . . . 2 . Parts Field Recycled . | . . . . . Retrieved Matter . | . . . . . Parts Self-Destructed . | . . . . . Prevented . | . . . . . Kills | -11 -10 -10 -9 -8 ------- Run | Scr Mat Min Mat Mat Combat Hostiles Destroyed 11 | . . 2 9 . Guns 11 | . . 2 9 . Classes Destroyed 4 | . . 1 3 . Operator 2 | . . . 1 1 Swarmer 6 | . . 2 4 . Grunt 4 | . . . 4 . Sentry 1 | . . . 1 . Best Kill Streak 6 | . . 2 6 1 Combat Bots Only 6 | . . 2 6 . Max Kills in Single Turn 1 | . . 1 1 1 Gunslinging . | . . . . . Exploded . | . . . . . Melee . | . . . . . Uniques/NPCs Destroyed . | . . . . . Combat | -11 -10 -10 -9 -8 -------- Run | Scr Mat Min Mat Mat Damage Taken 502 | . . 25 424 53 Core 260 | . . 7 253 . Absorbed by Shields . | . . . . . Core Remaining (%) 77 | 100 . 97 36 . Volleys Fired 55 | . . 2 50 3 Largest 2 | . . 2 2 2 Hottest 105 | . . 80 80 105 Shots Fired 80 | . . 4 70 6 Gun 80 | . . 4 70 6 Cannon . | . . . . . Launcher . | . . . . . Special . | . . . . . Kinetic 24 | . . . 24 . Thermal 56 | . . 4 46 6 Explosive . | . . . . . Electromagnetic . | . . . . . Robot Hit Streak 9 | . . 2 9 6 Robot Miss Streak 5 | . . . 5 2 Penetration Max . | . . . . . Secondary Targets . | . . . . . Shots Hit Robots 55 | . . 2 48 5 Core Hits 22 | . . 2 20 . Critical Kills . | . . . . . Critical Parts Destroyed . | . . . . . Critical Strikes . | . . . . . Melee Attacks 2 | . . . . 2 Impact . | . . . . . Slashing 2 | . . . . 2 Piercing . | . . . . . Sneak Attacks 1 | . . . . 1 Combat Hostiles . | . . . . . Follow-up Attacks . | . . . . . Damage Inflicted 598 | . . 22 460 116 Guns 508 | . . 22 460 26 Cannons . | . . . . . Explosions . | . . . . . Melee 90 | . . . . 90 Ramming . | . . . . . Kinetic 142 | . . . 142 . Thermal 366 | . . 22 318 26 Explosive . | . . . . . Electromagnetic . | . . . . . Impact . | . . . . . Slashing 90 | . . . . 90 Piercing . | . . . . . Highest Corruption 1 | . . . . 1 Average Corruption 1 | . . . . 1 Corruption Purged . | . . . . . Corruption Blocked . | . . . . . Overload Shots . | . . . . . Overflow Damage 86 | . . . . 86 Projectiles . | . . . . . Explosions . | . . . . . Melee 86 | . . . . 86 Knockbacks . | . . . . . Impact . | . . . . . Kinetic . | . . . . . Secondary . | . . . . . Self-Inflicted Damage . | . . . . . Shots . | . . . . . Rammed . | . . . . . Targets Rammed . | . . . . . Kicked . | . . . . . Crushed . | . . . . . Highest Temperature 68 | . . 6 14 68 Average Temperature 12 | . . 3 5 30 Received Heat Transfer 174 | . . . 174 . Siege Activations . | . . . . . Robots Corrupted . | . . . . . Combat Hostiles . | . . . . . Parts Fried . | . . . . . Impact Corruptions . | . . . . . Robots Melted . | . . . . . Combat Hostiles . | . . . . . Parts Melted . | . . . . . Heat Transferred 837 | . . 50 725 62 Parts Sabotaged . | . . . . . Parts Stolen . | . . . . . Parts Stripped . | . . . . . Power Chain Reactions . | . . . . . Missiles Intercepted . | . . . . . Alert | -11 -10 -10 -9 -8 ------- Run | Scr Mat Min Mat Mat Peak Influence 375 | . 15 79 375 201 Initial 157 | . . 5 30 157 Average 148 | . 5 36 186 179 Maximum Alert Level 1 | . . . 1 1 Low Security (%) 68 | 100 100 100 53 94 Level 1 31 | . . . 46 5 Level 2 . | . . . . . Level 3 . | . . . . . Level 4 . | . . . . . Level 5 . | . . . . . High Security . | . . . . . Max Security . | . . . . . Squads Dispatched 4 | . . . 2 2 Investigation 1 | . . . 1 . Extermination . | . . . . . Reinforcement 3 | . . . 1 2 Assault . | . . . . . Garrison . | . . . . . Intercept . | . . . . . Searches Triggered . | . . . . . Construction Impeded . | . . . . . Haulers Reinforced . | . . . . . Active Scanning Responses . | . . . . . Cargo Convoy Interrupts . | . . . . . Stealth | -11 -10 -10 -9 -8 --------- Run | Scr Mat Min Mat Mat Distress Signals 1 | . . . 1 . Communications Jammed . | . . . . . Distress Signals . | . . . . . Times Spotted 27 | . 2 3 18 4 Peak Tracking Total 9 | . 2 3 9 4 Tactical Retreats 2 | . . . 2 . Traps | -11 -10 -10 -9 -8 ------- Run | Scr Mat Min Mat Mat Traps Triggered . | . . . . . Indirectly . | . . . . . Trap Hack Attempts . | . . . . . Triggered . | . . . . . Disarmed . | . . . . . Reprogrammed . | . . . . . Reused . | . . . . . Traps Extracted . | . . . . . Installed . | . . . . . Triggered . | . . . . . Machines | -11 -10 -10 -9 -8 ---------- Run | Scr Mat Min Mat Mat Machines Disabled . | . . . . . Max in Single Turn . | . . . . . Machines Sabotaged . | . . . . . Garrisons Compromised . | . . . . . Overloaded Fab Kills . | . . . . . Hacking | -11 -10 -10 -9 -8 --------- Run | Scr Mat Min Mat Mat Machines Accessed 7 | . 2 . 3 2 Terminals 6 | . 1 . 3 2 Fabricators . | . . . . . Repair Stations . | . . . . . Recycling Units 1 | . 1 . . . Scanalyzers . | . . . . . Garrison Access . | . . . . . Total Hacks 27 | . 6 . 10 11 Successful 7 | . 3 . 3 1 Failed 20 | . 3 . 7 10 Catastrophic 4 | . . . 2 2 Database Lockouts . | . . . . . Manual 19 | . 2 . 10 7 Terminals 23 | . 2 . 10 11 Fabricators . | . . . . . Repair Stations . | . . . . . Recycling Units 4 | . 4 . . . Scanalyzers . | . . . . . Garrison Access . | . . . . . Terminal Hacks 4 | . 1 . 2 1 Level Access Points 1 | . . . . 1 Locate Traps 2 | . 1 . 1 . Recall Investigation 1 | . . . 1 . Fabricator Hacks . | . . . . . Repair Station Hacks . | . . . . . Recycling Unit Hacks 2 | . 2 . . . Report Inventory 1 | . 1 . . . Retrieve Components 1 | . 1 . . . Scanalyzer . | . . . . . Garrison Access Hacks . | . . . . . Unauthorized Hacks 1 | . . . 1 . Terminals 1 | . . . 1 . Operators 1 | . . . 1 . Fabricators . | . . . . . Repair Stations . | . . . . . Recycling Units . | . . . . . Scanalyzers . | . . . . . Garrison Access . | . . . . . Data Cores Recovered . | . . . . . Used . | . . . . . Hacking Detections 6 | . 2 . 3 1 Full Trace Events 3 | . 1 . 2 . Feedback Events . | . . . . . Feedback Blocked . | . . . . . Robot Schematics Acquired . | . . . . . Robots Built . | . . . . . Authchips . | . . . . . Time . | . . . . . Total Robot Build Rating . | . . . . . Part Schematics Acquired . | . . . . . Parts Built . | . . . . . Authchips . | . . . . . Time . | . . . . . Total Part Build Rating . | . . . . . Parts Repaired . | . . . . . Time . | . . . . . Parts Recycled . | . . . . . Recycled Matter . | . . . . . Retrieved Matter . | . . . . . Retrieved Components 2 | . 2 . . . Parts Scanalyzed . | . . . . . Part Schematics Acquired . | . . . . . Parts Damaged . | . . . . . Bothacking | -11 -10 -10 -9 -8 ------------ Run | Scr Mat Min Mat Mat Used RIF Installer . | . . . . . Robots Hacked . | . . . . . Non-combat . | . . . . . Combat . | . . . . . Robot Hacks Applied . | . . . . . Relay Couplers Released . | . . . . . Fabnet Peak Effective % . | . . . . . Robots Rewired . | . . . . . Allies Hacked . | . . . . . Hacks Repelled . | . . . . . Allies | -11 -10 -10 -9 -8 -------- Run | Scr Mat Min Mat Mat Total Allies 1 | . . 1 . . Largest Group 1 | . . 1 . . Highest-Rated Group 31 | . . 31 . . Highest-Rated Ally 31 | . . 31 . . Total Orders . | . . . . . Ally Attacks 2 | . . 2 . . Total Damage 42 | . . 42 . . Kills 1 | . . 1 . . Allies Corrupted . | . . . . . Allies Melted . | . . . . . Intel | -11 -10 -10 -9 -8 ------- Run | Scr Mat Min Mat Mat Robot Analysis Total . | . . . . . Derelict Logs Recovered . | . . . . . Drone Launches . | . . . . . Drone Recoveries . | . . . . . Exploration | -11 -10 -10 -9 -8 ------------- Run | Scr Mat Min Mat Mat Turns Passed 514 | 17 49 46 332 70 Spaces Moved 657 | 23 95 73 350 116 Core 217 | 23 95 73 26 . Treads . | . . . . . Legs . | . . . . . Wheels . | . . . . . Hover . | . . . . . Flight 440 | . . . 324 116 Fastest Speed 37 | 50 50 50 37 37 Average Speed 42 | 50 50 50 39 37 Slowest Speed 50 | 50 50 50 50 37 Overloaded Moves . | . . . . . Propulsion Burnouts . | . . . . . Robots Hopped 4 | . . . 4 . Cave-ins Triggered . | . . . . . Exploration Rate (%) 21 | 3 31 22 36 15 Regions Visited 4 Branch Regions 1 Pre-discovered Areas . | . . . . . Known Exits Taken . | . . . . . Unknown Exits Taken 4 | 1 1 1 1 . Scrap Searched . | . . . . . Spaces Dug 1 | . . . . 1 Terrain Destroyed 1 | . . . . 1 Melee 1 | . . . . 1 Projectile . | . . . . . AOE . | . . . . . Terrain Rammed . | . . . . . Walls Destroyed . | . . . . . Machines Disabled . | . . . . . Actions | -11 -10 -10 -9 -8 --------- Run | Scr Mat Min Mat Mat Total 805 | 27 95 78 471 134 Wait 51 | . . 2 49 . Move 645 | 22 94 72 341 116 Hop 4 | . . . 4 . Pick Up 11 | 1 1 1 5 3 Fast Attach 15 | 3 . . 9 3 Attach 6 | . . . 5 1 Detach 7 | 1 . . 5 1 Swap 1 | . . . . 1 Drop 8 | . . 1 3 4 Fire 55 | . . 2 50 3 Melee 2 | . . . . 2 Ram . | . . . . . Kick . | . . . . . Crush . | . . . . . Escape Stasis . | . . . . . Rewire . | . . . . . Trap . | . . . . . Miscellaneous . | . . . . . Route ------- -11/Scrapyard -10/Materials -10/Mines -9/Materials -8/Materials (discovered 3 exits: Fac x3) History --------- Turn | Location | Event 4 | -11/Scrapyard | Discovered new exit (range 16) 18 | -11/Scrapyard | Entered Materials 60 | -10/Materials | Discovered new exit (range 14) 67 | -10/Materials | Entered Mines 70 | -10/Mines | Received a Mining Laser from a helpful Derelict 72 | -10/Mines | Met a Derelict bent on vengeance 110 | -10/Mines | Discovered new exit (range 6) 113 | -10/Mines | Entered Materials 113 | -9/Materials | Evolved 2 slots: Utility x2 309 | -9/Materials | Build established: Mutant 391 | -9/Materials | Core integrity fell below 50% 441 | -9/Materials | Discovered new exit (range 10) 445 | -9/Materials | Entered another Materials area 445 | -8/Materials | Evolved 2 slots: Utility x2 498 | -8/Materials | Identified exit to Factory 515 | -8/Materials | Self-destructed Last Messages --------------- 00482_ Acquired Katana. 00483_ Acquired Hacking Suite. 00484_ Acquired Terrain Scanner. 00486_ Dropped Heat Sink. 00487_ Acquired Katana. 00497_ ALERT: Suspicious intruders detected, dispatching Cutter reinforcements to area. 00498_ Connecting with Terminal... >>Access(Main) Found 3 level access points to Factory: (85,87) (19,9) (85,15) Map updated. 00508_ K-01 Serf collects debris. 00511_ System Shield destroyed. 00511_ System corrupted by crushing effect (+1). 00511_ Knocked back. 00514_ K-01 Serf collects debris. 00515_ Flight Unit destroyed. Map ----- +----------------------------------------------------+ | ???????????????????????????????????????? | | ???????????????????????????????????????? | | ???????????????????????????????????????? | | ???????????????????????????????????????? | | ???????????????????????????????????????? | | ???????????????????????????????????????? | | ???????????????????????????????????????? | | ???????????????????????????????????????? | | ???????????????????????????????????????? | | ???????????????????????????????????????? | | ???????????????????????????????????????? | | ???????????????????????????????????????? | | ???????????????????????????????????????? | | ???????????????????????????????????????? | | ???????????????????????????????????????? | | ???????????????????????????????????????? | | ???????????????????????????????????????? | | ???????????????????????????????????????? | | ???????????????????????????????????????? | | ????????????????????? #????????????????? | | ??????????????###???? #????????????????? | | ?????????????? ???? #????????????????? | | ??????????????# #???? #????????????????? | | ??????????????# #???? ##???????????????? | | ??????????????# #???? ????????????????? | | ??????????????#@#???? #????????????????? | | ????????????###c#####+#????????????????? | | ????????????# c #????????????????? | | ????????????# """" #????????????????? | | ????????????# """" ! ##???????????????? | | ????????????# """" #???????????????? | | ????????????# k ##???????????????? | | ????????????# #????????????????? | | ????????????# | #????????????????? | | ????????????# #????????????????? | | ????????????#### ######??????????? | | ????????H???? # #??????????? | | ????????????#### # """" #??????????? | | ???????????????# # """" #??????????? | | ???????????????# + """" #??????????? | | ???????????????# # #??????????? | | ???????????????# # " " #??????????? | | ?????########### # "R" #??????????? | | ?????# ! # # """ #??????????? | | ?????#"" # # #??????????? | | ?????#"" = # ##########??????????? | | ?????#"T + ##########??????????? | | ?????#"" """ # # #??????????? | | ?????#"" """ # # #??????????? | | ?????# """ # # = #??????????? | +----------------------------------------------------+ Best States ------------- Heat Dissipation 38 Energy Generation 10 Energy Capacity 125 Matter Stores 300 Matter Capacity 300 Sight Range 18 Terrain Scan Range 14 Terrain Scan Density 10 Evasion (%) 62 Offensive Hacking 10 Defensive Hacking 40 Item Schematics ----------------- None Robot Schematics ------------------ None Fabricated ------------ Nothing Alien Tech Used ----------------- None Achievements -------------- None Challenges ------------ None Game ------ Seed BlastDrainedNanosword Manual? 0 Play Time 00:16:29 Cumulative 112.6 hours Start 2022.04.29 @ 11:21:49 End 2022.04.29 @ 11:36:55 Sessions 1 Manual Loads 0 Difficulty Rogue Special Mode None Game No. 142 Rogue 142 Adventurer 0 Explorer 0 Win Type - Total 5 Types 5/0/0/0/0/0/0/0/0 Lore% 58 Gallery% 62 Achievement% 53 Wizard Run 0 Options --------- ASCII 1 Keyboard 1 Movement Numpad Keybinds 0 Fullscreen 1 Font 18/X11 Map View 76x50 Tactical HUD 1 Map Filters NONE Filters NONE Steam 1 RUN: eafd8d8a-d274-436e-85b2-5f515ddefab4